[Event "Late-Titled-Tuesday-Blitz-June-04-2024"]
[Site "Chess.com"]
[Date "2024.06.04"]
[Round "7"]
[White "Lavandum24"]
[Black "PawnEatingZombie"]
[Result "0-1"]
[WhiteElo "1823"]
[BlackElo "2263"]
[TimeControl "180+1"]
[EndTime "15:14:40 PDT"]
[Termination "PawnEatingZombie won by resignation"]

1. d4 {[%clk 0:03:00.9]} 1... Nf6 {[%clk 0:02:58.7]} 2. c4 {[%clk 0:03:00.2]}
2... g6 {[%clk 0:02:59.2]} 3. Nc3 {[%clk 0:02:59.2]} 3... Bg7 {[%clk 0:02:59.5]}
4. e4 {[%clk 0:02:59.3]} 4... d6 {[%clk 0:02:59.4]} 5. Nf3 {[%clk 0:02:57.9]}
5... O-O {[%clk 0:02:59.9]} 6. Be3 {[%clk 0:02:57.3]} 6... Nc6 {[%clk
0:02:51.9]} 7. Be2 {[%clk 0:02:56.3]} 7... e5 {[%clk 0:02:51.4]} 8. d5 {[%clk
0:02:55.1]} 8... Ne7 {[%clk 0:02:50.5]} 9. O-O {[%clk 0:02:54.8]} 9... Ng4
{[%clk 0:02:42.8]} 10. h3 {[%clk 0:02:53.9]} 10... Nxe3 {[%clk 0:02:42.4]} 11.
fxe3 {[%clk 0:02:54.1]} 11... Bh6 {[%clk 0:02:23.3]} 12. Qd3 {[%clk 0:02:50.4]}
12... Kg7 {[%clk 0:02:22.2]} 13. Nh2 {[%clk 0:02:49.2]} 13... Ng8 {[%clk
0:02:16.9]} 14. Ng4 {[%clk 0:02:47.7]} 14... Bxg4 {[%clk 0:02:13.6]} 15. Bxg4
{[%clk 0:02:47.2]} 15... Nf6 {[%clk 0:02:07]} 16. Be2 {[%clk 0:02:46.3]} 16...
Nd7 {[%clk 0:02:05]} 17. g4 {[%clk 0:02:41.6]} 17... a5 {[%clk 0:02:03.1]} 18.
Bd1 {[%clk 0:02:21.2]} 18... Nc5 {[%clk 0:02:02.4]} 19. Qe2 {[%clk 0:02:21.3]}
19... Qh4 {[%clk 0:02:02.2]} 20. Qf3 {[%clk 0:02:16.5]} 20... f6 {[%clk
0:01:54.4]} 21. Kh2 {[%clk 0:02:11.1]} 21... Rf7 {[%clk 0:01:53.8]} 22. Bc2
{[%clk 0:02:05.2]} 22... Raf8 {[%clk 0:01:52.8]} 23. Ne2 {[%clk 0:02:04.5]}
23... Kh8 {[%clk 0:01:42.2]} 24. Ng1 {[%clk 0:02:00.5]} 24... b6 {[%clk
0:01:30.7]} 25. Qe2 {[%clk 0:02:00.2]} 25... Qg5 {[%clk 0:01:20.6]} 26. Rae1
{[%clk 0:01:55.1]} 26... f5 {[%clk 0:01:15.8]} 27. exf5 {[%clk 0:01:53.3]} 27...
e4 {[%clk 0:01:11.6]} 28. fxg6 {[%clk 0:01:27.2]} 28... hxg6 {[%clk 0:01:11.5]}
29. Rxf7 {[%clk 0:01:19]} 29... Rxf7 {[%clk 0:01:12]} 30. Qg2 {[%clk 0:01:18.7]}
30... Bg7 {[%clk 0:01:06.8]} 31. Bxe4 {[%clk 0:00:58.5]} 31... Qe5+ {[%clk
0:01:04]} 32. Qg3 {[%clk 0:00:52]} 32... Qxe4 {[%clk 0:01:02.6]} 33. Qh4+ {[%clk
0:00:44.8]} 33... Kg8 {[%clk 0:00:59.9]} 34. Re2 {[%clk 0:00:35.4]} 34... Be5+
{[%clk 0:00:57.8]} 0-1

[Event "Late-Titled-Tuesday-Blitz-June-04-2024"]
[Site "Chess.com"]
[Date "2024.06.04"]
[Round "7"]
[White "Chessgod9oninsta"]
[Black "Chessdreamer2020"]
[Result "0-1"]
[WhiteElo "2702"]
[BlackElo "2561"]
[TimeControl "180+1"]
[EndTime "15:14:45 PDT"]
[Termination "Chessdreamer2020 won by resignation"]

1. d4 {[%clk 0:02:46.3]} 1... d6 {[%clk 0:02:59.9]} 2. Nf3 {[%clk 0:02:43.2]}
2... Bg4 {[%clk 0:02:59.9]} 3. e4 {[%clk 0:02:42.4]} 3... Nf6 {[%clk 0:02:59.4]}
4. Nc3 {[%clk 0:02:41.7]} 4... e6 {[%clk 0:02:59.2]} 5. h3 {[%clk 0:02:39.7]}
5... Bxf3 {[%clk 0:02:58.9]} 6. Qxf3 {[%clk 0:02:40.6]} 6... d5 {[%clk
0:02:59.8]} 7. e5 {[%clk 0:02:39.7]} 7... Nfd7 {[%clk 0:02:59.7]} 8. Qg3 {[%clk
0:02:25]} 8... c5 {[%clk 0:02:58.2]} 9. dxc5 {[%clk 0:02:23.1]} 9... Nc6 {[%clk
0:02:57.3]} 10. f4 {[%clk 0:02:20.9]} 10... Nxc5 {[%clk 0:02:54.6]} 11. Be2
{[%clk 0:02:19.5]} 11... d4 {[%clk 0:02:49]} 12. Nd1 {[%clk 0:02:17]} 12... Qa5+
{[%clk 0:02:45.1]} 13. Bd2 {[%clk 0:01:59.9]} 13... Qxd2+ {[%clk 0:02:42.5]} 14.
Kxd2 {[%clk 0:01:51.2]} 14... Ne4+ {[%clk 0:02:42.3]} 15. Ke1 {[%clk 0:01:51]}
15... Nxg3 {[%clk 0:02:42.5]} 16. Rg1 {[%clk 0:01:50.9]} 16... Nxe2 {[%clk
0:02:42.4]} 17. Kxe2 {[%clk 0:01:50.6]} 17... h5 {[%clk 0:02:42.4]} 18. Nf2
{[%clk 0:01:49]} 18... Be7 {[%clk 0:02:40.3]} 19. Nd3 {[%clk 0:01:47.5]} 19...
O-O-O {[%clk 0:02:39.5]} 20. Raf1 {[%clk 0:01:42.4]} 20... g6 {[%clk 0:02:38.4]}
21. a3 {[%clk 0:01:39.6]} 21... Na5 {[%clk 0:02:33.2]} 22. b3 {[%clk 0:01:34.7]}
22... h4 {[%clk 0:02:32.9]} 23. Kd2 {[%clk 0:01:29.2]} 23... Nc6 {[%clk
0:02:31.3]} 24. b4 {[%clk 0:01:26]} 24... Bf8 {[%clk 0:02:30.6]} 25. Rd1 {[%clk
0:01:14.5]} 25... Ne7 {[%clk 0:02:30.6]} 26. Kc1 {[%clk 0:01:10.6]} 26... Nf5
{[%clk 0:02:30.2]} 27. Kb2 {[%clk 0:01:05.9]} 27... Kb8 {[%clk 0:02:30.4]} 28.
Kb3 {[%clk 0:01:01.7]} 28... Rc8 {[%clk 0:02:30.5]} 29. Kb2 {[%clk 0:00:54.6]}
29... Be7 {[%clk 0:02:27.4]} 30. Rc1 {[%clk 0:00:51.9]} 30... Rc3 {[%clk
0:02:24.1]} 31. Nf2 {[%clk 0:00:49.3]} 31... Re3 {[%clk 0:02:17.6]} 32. Nd1
{[%clk 0:00:45.3]} 32... Re2 {[%clk 0:02:16.8]} 33. Kb3 {[%clk 0:00:42.2]} 33...
Rc8 {[%clk 0:02:16.3]} 34. c4 {[%clk 0:00:39.3]} 34... dxc3 {[%clk 0:02:14]} 35.
Nxc3 {[%clk 0:00:39.3]} 35... Re3 {[%clk 0:02:06]} 36. Rgd1 {[%clk 0:00:36.8]}
36... Rd8 {[%clk 0:01:56.9]} 37. Kc4 {[%clk 0:00:31.4]} 37... a6 {[%clk
0:01:37.9]} 38. a4 {[%clk 0:00:25.1]} 38... Rg3 {[%clk 0:01:35.3]} 39. Rxd8+
{[%clk 0:00:21.1]} 39... Bxd8 {[%clk 0:01:35.2]} 40. a5 {[%clk 0:00:20.8]} 40...
Rxg2 {[%clk 0:01:33.4]} 41. Kb3 {[%clk 0:00:20.4]} 41... Rg3 {[%clk 0:01:33.1]}
42. Rd1 {[%clk 0:00:20.5]} 42... Kc8 {[%clk 0:01:29.6]} 43. Kc4 {[%clk 0:00:20]}
43... Ne3+ {[%clk 0:01:28.7]} 0-1

[Event "Late-Titled-Tuesday-Blitz-June-04-2024"]
[Site "Chess.com"]
[Date "2024.06.04"]
[Round "7"]
[White "gabduschew"]
[Black "mightysmasher"]
[Result "0-1"]
[WhiteElo "2322"]
[BlackElo "2561"]
[TimeControl "180+1"]
[EndTime "15:14:47 PDT"]
[Termination "mightysmasher won by resignation"]

1. e4 {[%clk 0:03:00.9]} 1... e6 {[%clk 0:02:56.3]} 2. c4 {[%clk 0:02:57.5]}
2... c6 {[%clk 0:02:55.5]} 3. d4 {[%clk 0:02:56.1]} 3... d5 {[%clk 0:02:55.6]}
4. cxd5 {[%clk 0:02:53.1]} 4... cxd5 {[%clk 0:02:55.6]} 5. exd5 {[%clk
0:02:49.9]} 5... exd5 {[%clk 0:02:55.6]} 6. Nc3 {[%clk 0:02:49.1]} 6... Nf6
{[%clk 0:02:55.3]} 7. Bg5 {[%clk 0:02:47.7]} 7... Be7 {[%clk 0:02:54.1]} 8. h3
{[%clk 0:02:46.6]} 8... O-O {[%clk 0:02:53.4]} 9. Nf3 {[%clk 0:02:47]} 9... Nc6
{[%clk 0:02:52.7]} 10. Bd3 {[%clk 0:02:45.5]} 10... h6 {[%clk 0:02:52.1]} 11.
Bh4 {[%clk 0:02:45.3]} 11... Re8 {[%clk 0:02:51.8]} 12. O-O {[%clk 0:02:45.2]}
12... Ne4 {[%clk 0:02:50]} 13. Bxe7 {[%clk 0:02:40]} 13... Rxe7 {[%clk
0:02:49.1]} 14. Bxe4 {[%clk 0:02:03.5]} 14... dxe4 {[%clk 0:02:46.8]} 15. Ne5
{[%clk 0:01:55.1]} 15... Nxd4 {[%clk 0:02:31.3]} 16. f4 {[%clk 0:01:40]} 16...
exf3 {[%clk 0:01:24.3]} 17. Nxf3 {[%clk 0:01:37.4]} 17... Nxf3+ {[%clk
0:01:23.9]} 18. Qxf3 {[%clk 0:01:35.1]} 18... Be6 {[%clk 0:01:23.3]} 19. Rad1
{[%clk 0:01:27.6]} 19... Qb6+ {[%clk 0:01:21.9]} 20. Kh1 {[%clk 0:01:26.3]}
20... Rae8 {[%clk 0:01:19.4]} 21. b3 {[%clk 0:01:20.1]} 21... Rd8 {[%clk
0:00:35.9]} 22. Rxd8+ {[%clk 0:01:13.1]} 22... Qxd8 {[%clk 0:00:34.5]} 23. Nb5
{[%clk 0:01:00.2]} 23... Bd5 {[%clk 0:00:23.5]} 24. Qf4 {[%clk 0:00:52.5]} 24...
Qd7 {[%clk 0:00:19.9]} 25. Nd4 {[%clk 0:00:46.7]} 25... Qxh3+ {[%clk 0:00:18.2]}
26. Qh2 {[%clk 0:00:45.5]} 26... Bxg2+ {[%clk 0:00:17.7]} 27. Kg1 {[%clk
0:00:43.5]} 27... Qxh2+ {[%clk 0:00:17.4]} 0-1

[Event "Late-Titled-Tuesday-Blitz-June-04-2024"]
[Site "Chess.com"]
[Date "2024.06.04"]
[Round "7"]
[White "Stanbad1"]
[Black "jlf287"]
[Result "1-0"]
[WhiteElo "2664"]
[BlackElo "2512"]
[TimeControl "180+1"]
[EndTime "15:14:49 PDT"]
[Termination "Stanbad1 won by resignation"]

1. d4 {[%clk 0:03:00.9]} 1... d5 {[%clk 0:02:59.5]} 2. Nc3 {[%clk 0:03:01.1]}
2... Nf6 {[%clk 0:02:59.1]} 3. Bf4 {[%clk 0:03:01.4]} 3... e6 {[%clk 0:02:59.7]}
4. Nb5 {[%clk 0:03:00.9]} 4... Na6 {[%clk 0:03:00.1]} 5. e3 {[%clk 0:03:01.3]}
5... Be7 {[%clk 0:02:59.9]} 6. Nf3 {[%clk 0:03:01.7]} 6... O-O {[%clk
0:03:00.4]} 7. h3 {[%clk 0:03:02.1]} 7... c6 {[%clk 0:02:55.2]} 8. Nc3 {[%clk
0:03:01.3]} 8... c5 {[%clk 0:02:56.1]} 9. Be2 {[%clk 0:02:57]} 9... Nb8 {[%clk
0:02:49.4]} 10. O-O {[%clk 0:02:55.3]} 10... Bd7 {[%clk 0:02:46.6]} 11. dxc5
{[%clk 0:02:55.3]} 11... Bxc5 {[%clk 0:02:44.5]} 12. Bd3 {[%clk 0:02:55.7]}
12... Nc6 {[%clk 0:02:44.3]} 13. e4 {[%clk 0:02:55.3]} 13... dxe4 {[%clk
0:02:38.1]} 14. Nxe4 {[%clk 0:02:54.7]} 14... Nxe4 {[%clk 0:02:38.1]} 15. Bxe4
{[%clk 0:02:55.6]} 15... Qe7 {[%clk 0:02:34.6]} 16. c3 {[%clk 0:02:54.5]} 16...
Rad8 {[%clk 0:02:31.2]} 17. b4 {[%clk 0:02:30.9]} 17... Bc8 {[%clk 0:02:16.9]}
18. Qc2 {[%clk 0:02:23.4]} 18... Bd6 {[%clk 0:02:10.6]} 19. Bxh7+ {[%clk
0:02:16.1]} 19... Kh8 {[%clk 0:02:10.3]} 20. Bg5 {[%clk 0:02:16.4]} 20... f6
{[%clk 0:02:08.2]} 21. Nh4 {[%clk 0:02:16.4]} 21... Ne5 {[%clk 0:01:59.2]} 22.
Bf4 {[%clk 0:02:15]} 22... g6 {[%clk 0:01:11.8]} 23. Bxg6 {[%clk 0:02:01.6]}
23... Kg7 {[%clk 0:01:06.1]} 24. Be4 {[%clk 0:01:58.6]} 24... f5 {[%clk
0:01:00.9]} 25. Bxe5+ {[%clk 0:01:49.3]} 25... Bxe5 {[%clk 0:01:00.2]} 26. Nf3
{[%clk 0:01:49.9]} 26... Bf6 {[%clk 0:00:56.8]} 27. Bd3 {[%clk 0:01:48.9]} 27...
Bd7 {[%clk 0:00:55.5]} 28. Rfe1 {[%clk 0:01:48.7]} 28... Qd6 {[%clk 0:00:43.6]}
29. Rad1 {[%clk 0:01:48.1]} 29... Qc7 {[%clk 0:00:39.8]} 30. c4 {[%clk
0:01:42.5]} 30... Rde8 {[%clk 0:00:36.5]} 31. c5 {[%clk 0:01:41.1]} 31... Rg8
{[%clk 0:00:35]} 32. Kh1 {[%clk 0:01:37.7]} 32... Kf7 {[%clk 0:00:35.2]} 33. Bc4
{[%clk 0:01:35]} 33... Rg6 {[%clk 0:00:25.5]} 34. Qxf5 {[%clk 0:01:32.7]} 34...
Bc6 {[%clk 0:00:14.3]} 35. Ne5+ {[%clk 0:01:26.7]} 35... Qxe5 {[%clk 0:00:10.6]}
36. Rxe5 {[%clk 0:01:25.8]} 36... Rxg2 {[%clk 0:00:07.8]} 37. Bxe6+ {[%clk
0:01:23.1]} 37... Kg7 {[%clk 0:00:06.3]} 38. Re4 {[%clk 0:01:19]} 38... Rxe6
{[%clk 0:00:02.3]} 39. Qxe6 {[%clk 0:01:15.9]} 1-0

[Event "Late-Titled-Tuesday-Blitz-June-04-2024"]
[Site "Chess.com"]
[Date "2024.06.04"]
[Round "7"]
[White "NoSpaghettiForYou"]
[Black "Tol_Tol"]
[Result "1-0"]
[WhiteElo "2551"]
[BlackElo "2386"]
[TimeControl "180+1"]
[EndTime "15:14:49 PDT"]
[Termination "NoSpaghettiForYou won on time"]

1. Nc3 {[%clk 0:03:00.9]} 1... Nf6 {[%clk 0:02:59.6]} 2. Nf3 {[%clk 0:03:00]}
2... g6 {[%clk 0:02:59.6]} 3. e4 {[%clk 0:02:59.1]} 3... d6 {[%clk 0:02:59.7]}
4. g3 {[%clk 0:02:58.3]} 4... Bg7 {[%clk 0:02:59.8]} 5. Bg2 {[%clk 0:02:58.8]}
5... O-O {[%clk 0:02:59.9]} 6. O-O {[%clk 0:02:59.2]} 6... e5 {[%clk 0:02:59.6]}
7. Re1 {[%clk 0:02:55.8]} 7... c6 {[%clk 0:02:59.4]} 8. d4 {[%clk 0:02:53.3]}
8... Qe7 {[%clk 0:02:59.6]} 9. h3 {[%clk 0:02:49.7]} 9... Na6 {[%clk 0:02:59.3]}
10. Kh2 {[%clk 0:02:48]} 10... Nc7 {[%clk 0:02:58.7]} 11. a4 {[%clk 0:02:41.7]}
11... h6 {[%clk 0:02:51.8]} 12. Be3 {[%clk 0:02:38.4]} 12... Kh7 {[%clk
0:02:45.7]} 13. b4 {[%clk 0:02:37.4]} 13... Nd7 {[%clk 0:02:39.7]} 14. d5 {[%clk
0:02:23.1]} 14... cxd5 {[%clk 0:02:35.3]} 15. exd5 {[%clk 0:02:20.3]} 15... f5
{[%clk 0:02:26.3]} 16. Qd2 {[%clk 0:02:13.6]} 16... g5 {[%clk 0:02:15.1]} 17.
Ra3 {[%clk 0:01:58.3]} 17... Na6 {[%clk 0:02:02.8]} 18. Nb5 {[%clk 0:01:52.1]}
18... b6 {[%clk 0:01:42.6]} 19. h4 {[%clk 0:01:31.8]} 19... f4 {[%clk 0:01:41]}
20. Qd3+ {[%clk 0:01:28.6]} 20... Kg8 {[%clk 0:01:37.8]} 21. Bd2 {[%clk
0:01:28.6]} 21... Nf6 {[%clk 0:01:15.3]} 22. Nfd4 {[%clk 0:01:26.8]} 22... Ng4+
{[%clk 0:01:08.8]} 23. Kg1 {[%clk 0:01:27.1]} 23... fxg3 {[%clk 0:00:47.3]} 24.
fxg3 {[%clk 0:01:27.4]} 24... gxh4 {[%clk 0:00:45.8]} 25. Nc6 {[%clk 0:01:27.6]}
25... Qf7 {[%clk 0:00:30.3]} 26. Rf1 {[%clk 0:01:25.8]} 26... Qh5 {[%clk
0:00:30.1]} 27. Ne7+ {[%clk 0:01:23]} 27... Kh8 {[%clk 0:00:22.6]} 28. Ng6+
{[%clk 0:01:23.2]} 28... Kg8 {[%clk 0:00:21.9]} 29. Nxf8 {[%clk 0:01:20.8]}
29... Bxf8 {[%clk 0:00:19.2]} 30. Rxf8+ {[%clk 0:01:07.3]} 30... Kxf8 {[%clk
0:00:18.7]} 31. Qh7 {[%clk 0:01:07.6]} 31... hxg3 {[%clk 0:00:02]} 32. Rf3+
{[%clk 0:01:07.6]} 32... Ke8 {[%clk 0:00:02.4]} 33. Nxd6+ {[%clk 0:01:07.7]}
33... Kd8 {[%clk 0:00:01.8]} 34. Rf8+ {[%clk 0:01:08]} 1-0

[Event "Late-Titled-Tuesday-Blitz-June-04-2024"]
[Site "Chess.com"]
[Date "2024.06.04"]
[Round "7"]
[White "Bob_2004"]
[Black "SilverCityIndigo"]
[Result "1-0"]
[WhiteElo "2636"]
[BlackElo "2468"]
[TimeControl "180+1"]
[EndTime "15:14:51 PDT"]
[Termination "Bob_2004 won by checkmate"]

1. Nf3 {[%clk 0:03:00.9]} 1... Na6 {[%clk 0:03:00.2]} 2. e4 {[%clk 0:03:00.2]}
2... c6 {[%clk 0:03:00.8]} 3. Bxa6 {[%clk 0:02:59.2]} 3... bxa6 {[%clk
0:03:01.7]} 4. O-O {[%clk 0:02:59.4]} 4... e6 {[%clk 0:03:00.2]} 5. d4 {[%clk
0:02:57.5]} 5... c5 {[%clk 0:03:00.4]} 6. d5 {[%clk 0:02:56.9]} 6... Nf6 {[%clk
0:03:00.2]} 7. Re1 {[%clk 0:02:52.3]} 7... d6 {[%clk 0:02:53.8]} 8. c4 {[%clk
0:02:47.4]} 8... Be7 {[%clk 0:02:50.5]} 9. Nc3 {[%clk 0:02:44.8]} 9... e5 {[%clk
0:02:44.8]} 10. Qa4+ {[%clk 0:02:42.8]} 10... Qd7 {[%clk 0:02:43.1]} 11. Qc2
{[%clk 0:02:43.3]} 11... O-O {[%clk 0:02:39.8]} 12. Nh4 {[%clk 0:02:37.4]} 12...
Rd8 {[%clk 0:02:33.2]} 13. Nf5 {[%clk 0:02:34.5]} 13... Bf8 {[%clk 0:02:33.4]}
14. Bg5 {[%clk 0:02:34.1]} 14... Be7 {[%clk 0:01:50.5]} 15. Rad1 {[%clk
0:02:27.5]} 15... Rb8 {[%clk 0:01:42.6]} 16. b3 {[%clk 0:02:08.6]} 16... h6
{[%clk 0:01:42.5]} 17. Bh4 {[%clk 0:02:01.4]} 17... Kh7 {[%clk 0:01:38.5]} 18.
Nxe7 {[%clk 0:01:53.8]} 18... Qxe7 {[%clk 0:01:37.6]} 19. f4 {[%clk 0:01:54.4]}
19... g5 {[%clk 0:01:32.3]} 20. fxg5 {[%clk 0:01:53.7]} 20... hxg5 {[%clk
0:01:31.4]} 21. Bxg5 {[%clk 0:01:53.8]} 21... Rg8 {[%clk 0:01:28.6]} 22. Qd2
{[%clk 0:01:47.8]} 22... Bh3 {[%clk 0:01:22.1]} 23. Rf1 {[%clk 0:01:38.1]} 23...
Bxg2 {[%clk 0:01:12.6]} 24. Rxf6 {[%clk 0:01:37.9]} 24... Qxf6 {[%clk
0:00:25.1]} 25. Bxf6 {[%clk 0:01:37.5]} 25... Bxe4+ {[%clk 0:00:16.7]} 26. Kf2
{[%clk 0:01:37.5]} 26... Rg2+ {[%clk 0:00:16.3]} 27. Ke3 {[%clk 0:01:37.3]}
27... Rxd2 {[%clk 0:00:16.4]} 28. Rxd2 {[%clk 0:01:38.2]} 28... Bf5 {[%clk
0:00:15.5]} 29. Be7 {[%clk 0:01:38.9]} 29... Rg8 {[%clk 0:00:05.5]} 30. Bxd6
{[%clk 0:01:39.2]} 30... Rg1 {[%clk 0:00:05.8]} 31. Bxe5 {[%clk 0:01:37.4]}
31... Bd7 {[%clk 0:00:04.8]} 32. Ne4 {[%clk 0:01:35.8]} 32... Kg6 {[%clk
0:00:03.6]} 33. Nxc5 {[%clk 0:01:35.5]} 33... Bh3 {[%clk 0:00:03]} 34. Bg3
{[%clk 0:01:35.3]} 34... Kf5 {[%clk 0:00:02.9]} 35. Ne4 {[%clk 0:01:35]} 35...
Bg4 {[%clk 0:00:02.6]} 36. Rf2+ {[%clk 0:01:35.1]} 36... Kg6 {[%clk 0:00:02.4]}
37. d6 {[%clk 0:01:34.9]} 37... Kg7 {[%clk 0:00:02.9]} 38. d7 {[%clk 0:01:34.4]}
38... Rd1 {[%clk 0:00:03.5]} 39. Be5+ {[%clk 0:01:33.3]} 39... Kh7 {[%clk
0:00:02.5]} 40. Nf6+ {[%clk 0:01:33.4]} 40... Kg6 {[%clk 0:00:03.4]} 41. Nxg4
{[%clk 0:01:34.1]} 41... Rxd7 {[%clk 0:00:04]} 42. h4 {[%clk 0:01:33.1]} 42...
Re7 {[%clk 0:00:04.9]} 43. Rf6+ {[%clk 0:01:32.5]} 43... Kh5 {[%clk 0:00:05.4]}
44. Kf4 {[%clk 0:01:32.8]} 44... Re6 {[%clk 0:00:04.5]} 45. Rxf7 {[%clk
0:01:32.5]} 45... Re7 {[%clk 0:00:01.9]} 46. Rxe7 {[%clk 0:01:32.2]} 46... Kg6
{[%clk 0:00:01.9]} 47. h5+ {[%clk 0:01:31.9]} 47... Kxh5 {[%clk 0:00:02.8]} 48.
Re6 {[%clk 0:01:32.3]} 48... Kh4 {[%clk 0:00:01]} 49. Rh6# {[%clk 0:01:33.2]}
1-0

[Event "Late-Titled-Tuesday-Blitz-June-04-2024"]
[Site "Chess.com"]
[Date "2024.06.04"]
[Round "7"]
[White "AsaHoffmann"]
[Black "patzer-reloaded"]
[Result "1-0"]
[WhiteElo "2274"]
[BlackElo "2379"]
[TimeControl "180+1"]
[EndTime "15:14:53 PDT"]
[Termination "AsaHoffmann won by resignation"]

1. d4 {[%clk 0:01:23.3]} 1... d6 {[%clk 0:03:00.9]} 2. e4 {[%clk 0:01:22.4]}
2... Nf6 {[%clk 0:03:01.8]} 3. f3 {[%clk 0:01:22.3]} 3... g6 {[%clk 0:03:02.1]}
4. Be3 {[%clk 0:01:22.2]} 4... Bg7 {[%clk 0:03:02.7]} 5. Qd2 {[%clk 0:01:22.3]}
5... O-O {[%clk 0:03:03.4]} 6. Nc3 {[%clk 0:01:22.2]} 6... e5 {[%clk 0:03:02.4]}
7. Nge2 {[%clk 0:01:22]} 7... Nc6 {[%clk 0:03:02]} 8. O-O-O {[%clk 0:01:21.6]}
8... h5 {[%clk 0:03:02.2]} 9. d5 {[%clk 0:01:21.2]} 9... Ne7 {[%clk 0:03:01]}
10. h3 {[%clk 0:01:21.1]} 10... Nh7 {[%clk 0:02:41.6]} 11. g4 {[%clk 0:01:20.8]}
11... h4 {[%clk 0:02:41.1]} 12. Bh6 {[%clk 0:01:18.3]} 12... Bxh6 {[%clk
0:02:32.6]} 13. Qxh6 {[%clk 0:01:17.5]} 13... g5 {[%clk 0:02:31.7]} 14. f4
{[%clk 0:01:10.9]} 14... exf4 {[%clk 0:02:01.2]} 15. e5 {[%clk 0:01:09.9]} 15...
dxe5 {[%clk 0:01:36.2]} 16. Ne4 {[%clk 0:01:09.2]} 16... Ng6 {[%clk 0:01:29.9]}
17. d6 {[%clk 0:01:04.9]} 17... Be6 {[%clk 0:01:18.9]} 18. N2c3 {[%clk
0:01:03.8]} 18... c6 {[%clk 0:01:17.2]} 19. Bd3 {[%clk 0:00:58.4]} 19... Kh8
{[%clk 0:01:01.3]} 20. Nc5 {[%clk 0:00:57.6]} 20... Qf6 {[%clk 0:00:42.3]} 21.
N3e4 {[%clk 0:00:52.7]} 21... Qg7 {[%clk 0:00:39.4]} 22. Qh5 {[%clk 0:00:47.7]}
22... Rg8 {[%clk 0:00:23.7]} 23. Nxg5 {[%clk 0:00:43.1]} 23... Nf8 {[%clk
0:00:21.1]} 24. Ncxe6 {[%clk 0:00:40.9]} 24... fxe6 {[%clk 0:00:20.6]} 25. Bxh7
{[%clk 0:00:37.7]} 25... Nxh7 {[%clk 0:00:15.2]} 26. Nf7+ {[%clk 0:00:36.5]}
26... Qxf7 {[%clk 0:00:14.9]} 27. Qxf7 {[%clk 0:00:36.3]} 27... Raf8 {[%clk
0:00:15.1]} 28. Qxe6 {[%clk 0:00:36]} 28... f3 {[%clk 0:00:15.2]} 29. Qxe5+
{[%clk 0:00:35.9]} 29... Rg7 {[%clk 0:00:14.6]} 30. d7 {[%clk 0:00:35.9]} 1-0

[Event "Late-Titled-Tuesday-Blitz-June-04-2024"]
[Site "Chess.com"]
[Date "2024.06.04"]
[Round "7"]
[White "ansko1999"]
[Black "TheoSlade"]
[Result "0-1"]
[WhiteElo "2623"]
[BlackElo "2481"]
[TimeControl "180+1"]
[EndTime "15:14:56 PDT"]
[Termination "TheoSlade won on time"]

1. Nc3 {[%clk 0:03:00.9]} 1... d5 {[%clk 0:02:59.5]} 2. e4 {[%clk 0:03:00.4]}
2... d4 {[%clk 0:02:58.7]} 3. Nce2 {[%clk 0:02:59.7]} 3... e5 {[%clk 0:02:59.2]}
4. Ng3 {[%clk 0:02:59.9]} 4... Be6 {[%clk 0:02:59.2]} 5. b3 {[%clk 0:02:56.7]}
5... Nf6 {[%clk 0:02:55.5]} 6. Bc4 {[%clk 0:02:55.7]} 6... Bxc4 {[%clk
0:02:53.7]} 7. bxc4 {[%clk 0:02:56.6]} 7... Bd6 {[%clk 0:02:51.3]} 8. d3 {[%clk
0:02:55.5]} 8... Bb4+ {[%clk 0:02:48.8]} 9. Bd2 {[%clk 0:02:46.8]} 9... Bxd2+
{[%clk 0:02:49.2]} 10. Qxd2 {[%clk 0:02:47.7]} 10... O-O {[%clk 0:02:49.2]} 11.
Nf5 {[%clk 0:02:42.6]} 11... g6 {[%clk 0:02:41.9]} 12. Nh6+ {[%clk 0:02:38.4]}
12... Kg7 {[%clk 0:02:41]} 13. h4 {[%clk 0:02:30.9]} 13... Ng8 {[%clk
0:02:35.3]} 14. Nxg8 {[%clk 0:02:25.2]} 14... Rxg8 {[%clk 0:02:32.3]} 15. h5
{[%clk 0:02:23.9]} 15... g5 {[%clk 0:02:20.2]} 16. h6+ {[%clk 0:02:23.1]} 16...
Kh8 {[%clk 0:02:20.3]} 17. Nf3 {[%clk 0:02:21.3]} 17... Qf6 {[%clk 0:02:16.1]}
18. Rh5 {[%clk 0:02:17]} 18... Nd7 {[%clk 0:01:58.2]} 19. Rb1 {[%clk 0:02:01.8]}
19... b6 {[%clk 0:01:51.6]} 20. Nxg5 {[%clk 0:01:57.9]} 20... Rg6 {[%clk
0:01:49.5]} 21. g3 {[%clk 0:01:46.5]} 21... Rag8 {[%clk 0:01:45.7]} 22. f4
{[%clk 0:01:38.4]} 22... exf4 {[%clk 0:01:46.6]} 23. gxf4 {[%clk 0:01:38.7]}
23... Nc5 {[%clk 0:01:23.7]} 24. Kd1 {[%clk 0:00:38.9]} 24... Ne6 {[%clk
0:01:11.9]} 25. Kc1 {[%clk 0:00:37.8]} 25... Nxf4 {[%clk 0:01:04.3]} 26. Nxf7+
{[%clk 0:00:31.6]} 26... Qxf7 {[%clk 0:01:03.7]} 27. Rf5 {[%clk 0:00:32.2]}
27... Qe7 {[%clk 0:00:44.9]} 28. Qxf4 {[%clk 0:00:02.6]} 28... Rg1+ {[%clk
0:00:43.4]} 0-1